Cogmind - Beta 13 @@@ ROGUE MODE // 2024.03.02 @ 22:06:30 Player: Jezoensis Result: Destroyed by D-53 Grenadier with Mini Grenade Launcher Performance ------------- Evolutions (0) 0 Regions Visited (2) 400 Robots Destroyed (18) 90 Value Destroyed (466) 466 Prototype IDs (0) 0 Alien Tech Used (0) 0 Bonus (0) 0 TOTAL SCORE: 956 Bonus ------- None Cogmind --------- Core Integrity 0/250 Matter 256/300 Energy 97/100 System Corruption 10% Temperature Cool (0) Movement Rolling (100) Location -10/Mines Parts ------- > --- POWER (1) -------- (None) > --- PROPULSION (2) --- Light Treads Compact Wheel > --- UTILITY (2) ------ Improved Heat Sink Medium Storage Unit > --- WEAPON (2) ------- Medium Laser > --- INVENTORY (10) --- Wheel High-capacity Matter Pod (0) Visual Processing Unit Signal Interpreter Improved Terrain Scanner Seismic Detector Mining Laser Peak State ------------ > --- POWER ------------ Ion Engine > --- PROPULSION ------- Wheel Wheel > --- UTILITY ---------- Small Storage Unit Improved Terrain Scanner > --- WEAPON ----------- Particle Gun Assault Rifle > --- INVENTORY -------- Ion Engine Light Treads Light Treads Compact Wheel Improved Heat Sink Medium Laser Light Assault Rifle Mining Laser [Rating: 11] Favorites ----------- Power Ion Engine Engine Ion Engine Propulsion Wheel Treads Light Treads Wheel Wheel Utility Improved Terrain Scanner Device Improved Terrain Scanner Storage Medium Storage Unit Processor Targeting Computer Weapon Assault Rifle Energy Gun Particle Gun Ballistic Gun Assault Rifle Special Weapon Mining Laser Build | -11 -10 -10 ------- Run | Yrd Mat Min Slots Evolved . | . . . Power . | . . . Propulsion . | . . . Utility . | . . . Weapon . | . . . Parts Attached 36 | 9 21 6 Power 2 | 1 1 . Engine 2 | 1 1 . Core . | . . . Reactor . | . . . Propulsion 15 | 3 10 2 Treads 5 | . 4 1 Leg . | . . . Wheel 10 | 3 6 1 Hover . | . . . Flight . | . . . Utility 11 | 2 7 2 Device 8 | 1 5 2 Storage 2 | 1 1 . Processor 1 | . 1 . Hackware . | . . . Protection . | . . . Artifact . | . . . Weapon 8 | 3 3 2 Energy Gun 4 | 1 2 1 Energy Cannon . | . . . Ballistic Gun 3 | 2 . 1 Ballistic Cannon . | . . . Launcher . | . . . Special Weapon 1 | . 1 . Impact Weapon . | . . . Slashing Weapon . | . . . Piercing Weapon . | . . . Special Melee Weapon . | . . . Unidentified Prototypes . | . . . Parts Lost 6 | . 1 5 Power 2 | . 1 1 Propulsion 1 | . . 1 Utility . | . . . Weapon 3 | . . 3 Highest Loss Streak 5 | . 1 5 To Critical Strikes . | . . . Average Slot Usage (%) 97 | . 98 82 Engine 13 | . 14 11 Treads 4 | . 4 8 Wheel 22 | . 23 14 Device 12 | . 12 14 Storage 14 | . 14 14 Energy Gun 13 | . 13 11 Ballistic Gun 13 | . 14 8 Naked Turns . | . . . Heaviest Build 21 | 15 21 21 Greatest Support 26 | 20 26 26 Greatest Overweight (x) 1 | . 1 . Average Overweight (x) . | . . . Largest Inventory Capacity 10 | 8 10 10 Average Capacity 8 | 5 9 10 Most Carried 10 | 6 10 10 Average Carried 7 | 4 8 9 Final Capacity 10 | 8 10 10 Final Carried 10 | 5 10 7 Class Distribution -------------------- 68% | Scavenger-Mutant 31% | Mutant Dominant Class ---------------- Scavenger-Mutant | -10/Materials Scavenger-Mutant | -10/Mines Resources | -11 -10 -10 ----------- Run | Yrd Mat Min Matter Collected 651 | 240 394 17 Remotely . | . . . Salvage Created 756 | 43 682 31 Parts 45 | 6 39 . Haulers Intercepted 1 | . 1 . Recyclers Shooed 3 | 1 2 . Parts Field Recycled . | . . . Retrieved Matter . | . . . Parts Self-Destructed . | . . . Prevented . | . . . Kills | -11 -10 -10 ------- Run | Yrd Mat Min Combat Hostiles Destroyed 14 | . 12 2 Guns 14 | . 12 2 Classes Destroyed 6 | 1 4 1 Tunneler 3 | 2 1 . Hauler 1 | . 1 . Recycler 1 | . 1 . Watcher 1 | . 1 . Grunt 12 | . 12 . Assembled 2 | . . 2 Best Kill Streak 6 | 2 6 2 Combat Bots Only 5 | . 5 2 Max Kills in Single Turn 2 | 1 2 1 Gunslinging 1 | . 1 . Exploded . | . . . Melee . | . . . Uniques/NPCs Destroyed . | . . . Combat | -11 -10 -10 -------- Run | Yrd Mat Min Hostile Shots Fired 110 | . 78 32 Missed 33 | . 23 10 Damage Taken 1135 | . 622 513 Core 250 | . 104 146 Absorbed by Shields . | . . . Core Remaining (%) 100 | 100 . . Volleys Fired 61 | 10 44 7 Largest 2 | 2 2 2 Hottest 100 | 70 100 85 Shots Fired 121 | 20 88 13 Gun 120 | 20 87 13 Cannon . | . . . Launcher . | . . . Special 1 | . 1 . Kinetic 59 | 10 43 6 Thermal 62 | 10 45 7 Explosive . | . . . Electromagnetic . | . . . Robot Hit Streak 8 | 7 8 6 Robot Miss Streak 5 | 3 5 2 Penetration Max . | . . . Secondary Targets 7 | . 5 2 Max Gunslinging Chain 1 | . 1 1 Shots Hit Robots 79 | 14 57 8 Core Hits 37 | 3 28 6 Critical Kills 1 | . 1 . Critical Parts Destroyed 2 | 1 1 . Critical Strikes 5 | 1 4 . Burn 2 | . 2 . Destroy 3 | 1 2 . Melee Attacks . | . . . Impact . | . . . Slashing . | . . . Piercing . | . . . Sneak Attacks . | . . . Combat Hostiles . | . . . Follow-up Attacks . | . . . Damage Inflicted 1144 | 209 813 122 Guns 1144 | 209 813 122 Cannons . | . . . Explosions . | . . . Melee . | . . . Ramming . | . . . Kinetic 531 | 110 381 40 Thermal 613 | 99 432 82 Explosive . | . . . Electromagnetic . | . . . Impact . | . . . Slashing . | . . . Piercing . | . . . Highest Corruption 10 | . 2 10 Average Corruption 2 | . 2 4 Corruption Purged . | . . . Corruption Blocked . | . . . Effects 4 | . 3 1 Data Loss (minor) 2 | . 2 . Data Loss (major) 1 | . . 1 Misfires 1 | . 1 . Overload Shots . | . . . Overflow Damage . | . . . Projectiles . | . . . Explosions . | . . . Melee . | . . . Knockbacks . | . . . Impact . | . . . Kinetic . | . . . Secondary . | . . . Self-Inflicted Damage . | . . . Shots . | . . . Rammed . | . . . Targets Rammed . | . . . Kicked . | . . . Crushed . | . . . Highest Temperature 173 | 81 173 54 Average Temperature 67 | 37 80 22 Received Heat Transfer 463 | . 363 100 Siege Activations . | . . . Robots Corrupted . | . . . Combat Hostiles . | . . . Parts Fried . | . . . Impact Corruptions . | . . . Robots Melted . | . . . Combat Hostiles . | . . . Parts Melted 4 | . 4 . Heat Transferred 1776 | 296 1258 222 Parts Sabotaged . | . . . Parts Stolen . | . . . Parts Stripped . | . . . Power Chain Reactions . | . . . Alert | -11 -10 -10 ------- Run | Yrd Mat Min Peak Influence 395 | 10 395 100 Initial 85 | . 6 85 Average 166 | 2 209 77 Maximum Alert Level 1 | . 1 . Low Security (%) 65 | 100 54 100 Level 1 34 | . 45 . Level 2 . | . . . Level 3 . | . . . Level 4 . | . . . Level 5 . | . . . High Security . | . . . Max Security . | . . . Squads Dispatched 4 | . 4 . Investigation 4 | . 4 . Extermination . | . . . Reinforcement . | . . . Assault . | . . . Garrison . | . . . Intercept . | . . . Searches Triggered . | . . . Construction Impeded . | . . . Haulers Reinforced . | . . . Active Scanning Responses . | . . . Cargo Convoy Interrupts . | . . . Stealth | -11 -10 -10 --------- Run | Yrd Mat Min Distress Signals 2 | . 2 . Communications Jammed . | . . . Distress Signals . | . . . Times Spotted 33 | . 20 13 Peak Tracking Total 11 | . 6 11 Tactical Retreats 1 | . . 1 Traps | -11 -10 -10 ------- Run | Yrd Mat Min Traps Triggered 2 | . 2 . Indirectly . | . . . Trap Hack Attempts . | . . . Triggered . | . . . Disarmed . | . . . Reprogrammed . | . . . Reused . | . . . Traps Extracted . | . . . Installed . | . . . Triggered . | . . . Machines | -11 -10 -10 ---------- Run | Yrd Mat Min Machines Disabled . | . . . Max in Single Turn . | . . . Machines Repaired . | . . . Machines Dismantled . | . . . Machines Sabotaged . | . . . Overloaded Fab Kills . | . . . Hacking | -11 -10 -10 --------- Run | Yrd Mat Min Machines Accessed 5 | . 5 . Terminals 3 | . 3 . Fabricators . | . . . Repair Stations . | . . . Recycling Units 2 | . 2 . Scanalyzers . | . . . Garrison Access . | . . . Total Hacks 14 | . 14 . Successful 7 | . 7 . Failed 7 | . 7 . Catastrophic 1 | . 1 . Database Lockouts . | . . . Manual 13 | . 13 . Terminals 12 | . 12 . Fabricators . | . . . Repair Stations . | . . . Recycling Units 2 | . 2 . Scanalyzers . | . . . Garrison Access . | . . . Terminal Hacks 2 | . 2 . Robot Analysis 2 | . 2 . Fabricator Hacks . | . . . Repair Station Hacks . | . . . Recycling Unit Hacks . | . . . Scanalyzer . | . . . Garrison Access Hacks . | . . . Unauthorized Hacks 5 | . 5 . Terminals 3 | . 3 . Botnet 2 | . 2 . Operators 1 | . 1 . Fabricators . | . . . Repair Stations . | . . . Recycling Units 2 | . 2 . Tunnel 2 | . 2 . Scanalyzers . | . . . Garrison Access . | . . . Data Cores Recovered . | . . . Used . | . . . Hacking Detections 3 | . 3 . Full Trace Events 1 | . 1 . Feedback Events . | . . . Feedback Blocked . | . . . Robot Schematics Acquired . | . . . Robots Built . | . . . Authchips . | . . . Time . | . . . Total Robot Build Rating . | . . . Part Schematics Acquired . | . . . Parts Built . | . . . Authchips . | . . . Time . | . . . Total Part Build Rating . | . . . Parts Repaired . | . . . Time . | . . . Parts Recycled . | . . . Recycled Matter . | . . . Retrieved Matter . | . . . Retrieved Components . | . . . Parts Scanalyzed . | . . . Part Schematics Acquired . | . . . Parts Damaged . | . . . Bothacking | -11 -10 -10 ------------ Run | Yrd Mat Min Used RIF Installer . | . . . Robots Hacked . | . . . Non-combat . | . . . Combat . | . . . Robot Hacks Applied . | . . . Relay Couplers Released . | . . . Fabnet Peak Effective % . | . . . Robots Rewired . | . . . Allies Hacked . | . . . Hacks Repelled . | . . . Allies | -11 -10 -10 -------- Run | Yrd Mat Min Total Allies . | . . . Largest Group . | . . . Highest-Rated Group . | . . . Highest-Rated Ally . | . . . Total Orders . | . . . Ally Attacks . | . . . Total Damage . | . . . Kills . | . . . Allies Corrupted . | . . . Allies Melted . | . . . Intel | -11 -10 -10 ------- Run | Yrd Mat Min Robot Analysis Total 2 | . 2 . Derelict Logs Recovered . | . . . Drone Launches . | . . . Drone Recoveries . | . . . Exploration | -11 -10 -10 ------------- Run | Yrd Mat Min Turns Passed 587 | 90 445 52 Spaces Moved 374 | 43 304 27 Core 18 | 18 . . Treads . | . . . Legs . | . . . Wheels 356 | 25 304 27 Hover . | . . . Flight . | . . . Fastest Speed 50 | 50 80 90 Average Speed 86 | 67 88 91 Slowest Speed 100 | 80 95 100 Overloaded Moves . | . . . Propulsion Burnouts . | . . . Robots Hopped . | . . . Cave-ins Triggered . | . . . Exploration Rate (%) 19 | 3 44 10 Regions Visited 2 Branch Regions 1 Pre-discovered Areas 2 | . 2 . Known Exits Taken . | . . . Unknown Exits Taken 2 | 1 1 . Scrap Searched . | . . . Spaces Dug 1 | . 1 . Terrain Destroyed 1 | . 1 . Melee . | . . . Projectile 1 | . 1 . AOE . | . . . Terrain Rammed . | . . . Walls Destroyed . | . . . Machines Disabled . | . . . Actions | -11 -10 -10 --------- Run | Yrd Mat Min Total 507 | 82 385 40 Wait 11 | 11 . . Move 372 | 42 303 27 Hop . | . . . Pick Up 17 | 8 9 . Fast Attach 4 | 4 . . Attach 8 | 3 2 3 Detach 1 | . 1 . Swap 24 | 2 19 3 Drop 9 | 2 7 . Fire 61 | 10 44 7 Melee . | . . . Ram . | . . . Kick . | . . . Crush . | . . . Escape Stasis . | . . . Rewire . | . . . Trap . | . . . Miscellaneous . | . . . Route ------- -11/Scrapyard -10/Materials (discovered 2 exits: [*Min x2]) -10/Mines History --------- Turn | Location | Event 17 | -11/Scrapyard | Discovered new exit (range 16) 91 | -11/Scrapyard | Entered Materials 139 | -10/Materials | Discovered new exit (range 16) 268 | -10/Materials | Discovered new exit (range 11) 489 | -10/Materials | Build established: Scavenger-Mutant 536 | -10/Materials | Entered Mines 537 | -10/Mines | Assembled infested the area 572 | -10/Mines | Core integrity fell below 50% 574 | -10/Mines | System corruption reached 10% 586 | -10/Mines | Core integrity fell below 20% 588 | -10/Mines | Destroyed by D-53 Grenadier with Mini Grenade Launcher Last Messages --------------- LOCATION=UNKNOWN GOAL=ESCAPE Something is scanning the area. 00537_ ALERT: Infestation in the mines, dispatching Demolisher response squad. 00551_ Assault Rifle destroyed. 00567_ Com. Wheel destroyed. 00567_ System corrupted by crushing effect (+5). 00568_ Particle Gun destroyed. 00571_ as-83140 destroyed. 00571_ Switching to secondary target: as-74010. 00573_ Ion Engine destroyed. 00573_ System corrupted by crushing effect (+3). 00575_ System corrupted: Substantial component data lost. 00577_ as-74010 destroyed. 00577_ Switching to secondary target: as-77559. 00578_ Lgt. Assault Rifle destroyed. 00583_ Acquired 17 matter. 00586_ as-82591 destroyed. 00586_ as-77559 destroyed. Map ----- +----------------------------------------------------+ | | | | | | | | | ?????????????????????????????????????????????????? | | ?????????????????????????????????????????????????? | | ?????????????????????????????????????????????????? | | ?????????????????????????????????????????????????? | | ?????????????????????????????????????????????????? | | ?????????????????????????????????????????????????? | | ?????????????????????????????????????????????????? | | ?????????????????????????????????????????????????? | | ?????????????????????????????????????????????????? | | ?????????????????????????????????????????????????? | | ?????????????????????????????????????????????????? | | ?????????????????????????????????????????????????? | | ???????????????????########??????????????????????? | | ???????????????????# ##?????????????????????? | | ???????????????????# #?????????????????????? | | ???????????????????? #?????????????????????? | | ???????????????????## #?????????????????????? | | ???????????????????# #?????????????????????? | | ???????????????????# #?????????????????????? | | ????????????????????# #??????????????????????? | | ???????????????????## ###?????????????????????? | | ?????????????????### @ #?????????????????????? | | ???????????????### #?????????????????????? | | ??????????????## d #????????????????????? | | ?????????????## % ##????????????????????? | | ?????????????# d #?????????????????????? | | ????????????## #?????????????????????? | | ????????????# ###?????????????????????? | | ???????????# #### % #???????????????????????? | | ???????????# #???# ##???????????????????????? | | ???????????####???? ##????????????????????????? | | ??????????????????# #?????????????????????????? | | ?????????????????? ?????? ??????????????????? | | ?????????????????# ????????????????????????? | | ?????????????????# ?????#?????????????????? | | ?????????????????# ###??????????????????????? | | ????????????????? ##????????????????????????? | | ????????????????? #?????????????????????????? | | ???????????????? #?????????????????????????? | | ???????????#???? #?????????????????????????? | | ??????????????? ##?????????????????????????? | | ???????????????? # #????#??????????????????????? | | ???????????????? #? ????????????????????????????? | | ??????????????????? ????????????????????????????? | | ?????????????????????????????????????????????????? | | ?????????????????????????????????????????????????? | +----------------------------------------------------+ Best States ------------- Heat Dissipation 39 Energy Generation 10 Energy Capacity 250 Matter Stores 300 Matter Capacity 300 Sight Range 16 Terrain Scan Range 16 Terrain Scan Density 10 Evasion (%) 50 Targeting Accuracy 5 Recoil Reduction 1 Item Schematics ----------------- None Robot Schematics ------------------ None Fabricated ------------ Nothing Alien Tech Used ----------------- None Achievements -------------- None Challenges ------------ None Game ------ Seed GuidedUltimateDissipator Manual? 0 Play Time 00:09:08 Cumulative 1042.7 hours Start 2024.03.02 @ 21:58:41 End 2024.03.02 @ 22:06:30 Sessions 1 Manual Loads 0 Difficulty Rogue Special Mode None Game No. 526 Rogue 399 Adventurer 125 Explorer 2 Win Type - Total 124 Types 98/9/8/3/3/0/0/2/1 Lore% 82 Gallery% 90 Achievement% 84 Wizard Run 0 Options --------- Layout 0 ASCII 0 Keyboard 1 Movement Numpad Keybinds 0 Fullscreen 1 Font 36/Terminus++ Map View 76x50 Zoom Use 0% Tactical HUD 1 Map Filters NONE Filters NONE Steam 1 RUN: e9a5a889-35a1-4353-b1e5-13ffd5752990